fUSD/lending_fUSD_20240211
["ID","MTS","AMOUNT","RATE_DAILY","PERIOD"]
[313738084,1707645039060,-1000.0,0.000229,2]
[313738085,1707645039069,-442.8317491,0.000229,2]
[313738086,1707645039079,-2535.4509119,0.000229,2]
[313738087,1707645039088,-3869.14152357,0.000229,2]
[313738088,1707645039097,-506.05714573,0.000229,2]
[313738089,1707645039107,-2101.33373599,0.000229,2]
[313738090,1707645039117,-200.0,0.000229,8]
[313738091,1707645039127,-2686.73606971,0.00022971,2]
[313738092,1707645039137,-176.8929418,0.00022994,2]
[313738093,1707645039146,-20737.1186666,0.00022994,2]
[313738094,1707645039157,-12165.3125449,0.00022994,2]
[313738095,1707645039166,-805.47686658,0.00022994,2]
[313738096,1707645039175,-156.53291878,0.00022998,2]
[313738097,1707645039186,-212.67476727,0.00022998,2]
[313738098,1707645039197,-231.8061173,0.00022998,2]
[313738099,1707645039207,-247.77956234,0.00022998,2]
[313738100,1707645039216,-979.32742237,0.00022998,2]
[313738101,1707645039225,-420.00309923,0.00022998,2]
[313738102,1707645039234,-356.17340624,0.00022998,2]
[313738103,1707645039244,-248.98611327,0.00022998,2]
[313738104,1707645039253,-500.0,0.00022998,2]
[313738105,1707645039263,-792.23794446,0.00022998,2]
[313738106,1707645039272,-1002.63228231,0.00022998,2]
[313738107,1707645039284,-233.46806501,0.00022998,2]
[313738108,1707645039293,-232.43952329,0.00022998,2]
[313738109,1707645039304,-2912.70078014,0.00022998,2]
[313738111,1707645039315,-155.45202334,0.00022998,2]
[313738112,1707645039324,-502.24649867,0.00022998,2]
[313738113,1707645039334,-158.247342,0.00022998,2]
[313738114,1707645039342,-359.6670296,0.00022998,2]
[313738115,1707645039353,-224.79274225,0.00022998,2]
[313738116,1707645039363,-741.5894424,0.00022998,2]
[313738117,1707645039373,-3888.1410818,0.00022998,2]
[313738118,1707645039382,-180.09259116,0.00022999,2]
[313738119,1707645039391,-3313.68237718,0.00022999,2]
[313738120,1707645039402,-258.36854093,0.00022999,2]
[313738121,1707645039411,-150.0,0.00022999,2]
[313738122,1707645039420,-150.0,0.00022999,2]
[313738123,1707645039430,-161.95127312,0.00022999,2]
[313738124,1707645039440,-1954441.43621503,0.00023,2]
[313738125,1707645039450,-778482.24333037,0.00023,2]
[313738126,1707645039460,-142999.74015805,0.00023,2]
[313738127,1707645039470,-121266.42004657,0.00023,2]
[313738128,1707645039482,-2938218.65354642,0.00023,2]
[313738133,1707645039995,-780.54963514,0.00023,2]
[313738136,1707645040007,-193877.8895011,0.00023,2]
[313738139,1707645040046,-998.06363688,0.00023,2]
[313738141,1707645040058,-1811.61041993,0.00023,2]
[313738142,1707645040069,-1123.70093959,0.00023,2]
[313738143,1707645040081,-842251.71743701,0.00023,2]
[313738144,1707645040093,-3743.16960301,0.00023,2]
[313738145,1707645040104,-57630.95631048,0.00023,2]
[313738146,1707645040117,-65212.05876339,0.00023,2]
[313738147,1707645040836,-4833.59814131,0.00023,2]
[313738151,1707645044146,-932.36280918,0.00023,2]
[313738152,1707645044158,-266.43816103,0.00023,2]
[313738153,1707645044171,-859.34174045,0.00023,2]
[313738154,1707645044208,-976.4368848,0.00023,2]
[313738155,1707645044220,-655.0793876,0.00023,2]
[313738156,1707645044262,-864.39749552,0.00022999,2]
[313738157,1707645044274,-2449.28488166,0.00022999,2]
[313738158,1707645044284,-2727.76578739,0.00023,2]
[313738159,1707645044295,-283.86905598,0.00023,2]
[313738160,1707645044328,-6061.21106542,0.00023,2]
[313738161,1707645044341,-1743.68086689,0.00023,2]
[313738162,1707645044353,-4727.51812292,0.00023,2]
[313738163,1707645044364,-302.1369335,0.00023,2]
[313738164,1707645044377,-569.85819587,0.00023,2]
[313738166,1707645044400,-405.00113522,0.00023,2]
[313738176,1707645044807,-2637.2084407,0.00023,2]
[313738177,1707645044819,-304.72607712,0.00023,2]
[313738178,1707645044831,-293.53101118,0.00023,2]
[313738179,1707645044842,-377.2251129,0.00023,2]
[313738182,1707645045601,-3717.536615,0.00023,2]
[313738183,1707645045614,-2258.89746342,0.00023,2]
[313738184,1707645045626,-4825.4,0.00023,2]
[313738185,1707645045638,-5055.6,0.00023,2]
[313738186,1707645045650,-7232.95575,0.00023,2]
[313738187,1707645045742,-11835.76017667,0.00023,2]
[313738188,1707645045754,-535.67633,0.00023,2]
[313738189,1707645045767,-1445.92927751,0.00023,2]
[313738190,1707645045859,-358.32340856,0.00022999,2]
[313738191,1707645045869,-828.28104567,0.00023,2]
[313738193,1707645125572,204.0,0.00021573,2]
[313738194,1707645312886,2000.0,0.00021971,2]
[313738195,1707645337005,500.62,0.00020034,2]
[313738196,1707645501222,169.5,0.00021939,2]
[313738198,1707645784284,2000.0,0.00021981,2]
[313738200,1707645789484,475.58,0.00020063,2]
[313738202,1707645797226,23900.0,0.00021961,2]
[313738203,1707646021461,1000.0,0.00021955,2]
[313738204,1707646129530,169.5,0.00021965,2]
[313738217,1707646199595,161.32387663,0.0002199,2]
[313738218,1707646204330,204.0,0.00021135,2]
[313738229,1707646231718,-601.07,0.00021991,2]
[313738230,1707646231727,-500.0,0.0002226,2]
[313738231,1707646231738,-475.58,0.00022327,2]
[313738232,1707646231747,-3487.41608654,0.00022533,2]
[313738233,1707646231757,-1047.96073117,0.0002254,2]
[313738234,1707646231766,-1014.72311936,0.0002254,2]
[313738235,1707646231776,-7.91018074,0.0002258,2]
[313738236,1707646231847,-582.06921319,0.0002258,2]
[313738237,1707646231859,-321.64509176,0.0002258,2]
[313738238,1707646231871,-660.805318,0.0002258,2]
[313738239,1707646231883,-1727.96399541,0.0002258,2]
[313738240,1707646231904,-1713.7933009,0.0002258,2]
[313738241,1707646231914,-15668.75171379,0.0002258,2]
[313738265,1707646237691,-311.21120683,0.0002258,2]
[313738273,1707646237752,-679.21665167,0.0002258,2]
[313738280,1707646237830,-8233.82777543,0.0002258,2]
[313738282,1707646237844,-31784.88075228,0.0002258,2]
[313738284,1707646237856,-499.99,0.0002258,2]
[313738286,1707646237867,-518.4141522,0.0002268,2]
[313738288,1707646237878,-1000.0,0.000227,2]
[313738290,1707646237889,-238.8,0.000227,2]
[313738291,1707646237900,-178.73,0.000227,2]
[313738292,1707646237912,-2287.0,0.00022759,2]
[313738293,1707646237922,-1415.662,0.00022759,2]
[313738295,1707646237933,-19823.0,0.00022759,2]
[313738297,1707646237943,-2982.497,0.00022759,2]
[313738298,1707646237953,-8154.0,0.00022759,2]
[313738299,1707646237963,-2923.0,0.00022759,2]
[313738300,1707646237973,-611.995,0.00022759,2]
[313738301,1707646237983,-500.0,0.00022808,2]
[313738302,1707646237992,-213.716475,0.00022816,2]
[313738303,1707646238003,-800.0,0.00022816,2]
[313738304,1707646238017,-374.819,0.0002286,2]
[313738305,1707646238027,-1858.0,0.0002286,2]
[313738306,1707646238037,-841.0,0.0002286,2]
[313738307,1707646238046,-2831.0,0.0002286,2]
[313738308,1707646238056,-453.39,0.0002286,2]
[313738309,1707646238066,-1232.0,0.0002286,2]
[313738310,1707646238076,-375.049,0.0002286,2]
[313738311,1707646238085,-237.0,0.0002286,2]
[313738312,1707646238095,-1003.0,0.0002286,2]
[313738313,1707646238104,-428.594,0.0002286,2]
[313738314,1707646238114,-315.734,0.0002286,2]
[313738315,1707646238123,-150.0,0.0002286,2]
[313738316,1707646238132,-321.0,0.0002286,2]
[313738317,1707646238142,-1138.0,0.0002286,2]
[313738319,1707646238151,-859.0,0.0002286,2]
[313738320,1707646238160,-453.0,0.0002286,2]
[313738322,1707646238170,-343.0,0.0002286,2]
[313738324,1707646238180,-2716.82192551,0.000229,2]
[313738325,1707646238190,-1000.0,0.000229,2]
[313738326,1707646238199,-4118.1118,0.000229,2]
[313738327,1707646238209,-5000.0,0.000229,2]
[313738328,1707646238219,-749.62315543,0.000229,2]
[313738329,1707646238228,-1554.85256364,0.000229,2]
[313738330,1707646238237,-5070.9018238,0.000229,2]
[313738331,1707646238247,-21643.41466227,0.000229,2]
[313738332,1707646238259,-331.55122612,0.000229,2]
[313738333,1707646238268,-9006.34581676,0.0002291,2]
[313738335,1707646238278,-167.286555,0.00022994,2]
[313738337,1707646238287,-4683.5949203,0.00022994,2]
[313738338,1707646238296,-51999.470561,0.00022994,2]
[313738339,1707646238305,-1777.636817,0.00022994,2]
[313738340,1707646238316,-445.26781453,0.00022994,2]
[313738341,1707646238325,-770.1596878,0.00022994,2]
[313738342,1707646238334,-1487.3566738,0.00022994,2]
[313738343,1707646238344,-161.32387663,0.00022998,2]
[313738344,1707646238354,-155.0,0.00022998,2]
[313738345,1707646238364,-345.63235448,0.00022998,2]
[313738346,1707646238374,-3313.68237718,0.00022999,2]
[313738347,1707646238383,-405559.29277909,0.00023,2]
[313738348,1707646238392,-218.38827187,0.00023,3]
[313738349,1707646238403,-5325987.50625475,0.00023,2]
[313738350,1707646238417,-10125.012,0.00023,2]
[313738351,1707646238471,-2500.82119386,0.00023,2]
[313738352,1707646238483,-1595.53762567,0.00023,2]
[313738353,1707646238496,-44027.31822,0.00023,2]
[313738369,1707646241117,-912.67906432,0.00023,2]
[313738370,1707646241128,-1968.71675,0.00023,2]
[313738371,1707646241139,-992.30776795,0.00023,2]
[313738392,1707646242710,-1967.13592715,0.00023,2]
[313738393,1707646242874,-3052.58213775,0.00023,2]
[313738394,1707646242932,-865.69617745,0.00023,2]
[313738395,1707646242944,-4607.01948272,0.00023,2]
[313738396,1707646242991,-4804.95824974,0.00023,2]
[313738398,1707646245820,-309.55552335,0.000229,6]
[313738399,1707646245876,-2298.65390835,0.000229,6]
[313738400,1707646245886,-376.29059637,0.00022999,2]
[313738401,1707646245941,-2937.39178081,0.00022999,2]
[313738402,1707646245951,-4564.93040463,0.00022999,2]
[313738403,1707646245960,-40687.51345183,0.00023,2]
[313738409,1707646278061,435.87,0.0002058,2]
[313738418,1707646715287,500.89,0.0002196,2]
[313738422,1707646751973,2587.24,0.00021957,2]
[313738423,1707646806144,421.92,0.00020079,2]
[313738426,1707646924258,204.0,0.00021911,2]
[313738427,1707646949734,800.0,0.00021987,2]
[313738429,1707647002094,-161.32387663,0.00022039,2]
[313738430,1707647002115,-200.0,0.0002204,2]
[313738431,1707647022846,-252.67612337,0.0002214,2]
[313738433,1707647254195,400.82,0.00020064,2]
[313738469,1707647431892,-161.32387663,0.00021991,2]
[313738472,1707647431902,-169.5,0.00021992,2]
[313738473,1707647431912,-417.4,0.00022011,2]
[313738474,1707647431924,-107.87688373,0.00022038,2]
[313738476,1707647431936,-879.37670246,0.00022038,2]
[313738477,1707647431947,-270.59641381,0.00022038,2]
[313738479,1707647431957,-500.0,0.0002226,2]
[313738481,1707647431967,-61.89239121,0.00022327,2]
[313738483,1707647432014,-338.92760879,0.00022327,2]
[313738484,1707647432023,-1011.42428836,0.0002254,2]
[313738485,1707647432032,-414.1051,0.00022662,2]
[313738486,1707647432042,-150.0,0.00022721,2]
[313738487,1707647432051,-300.0,0.00022761,2]
[313738488,1707647432060,-19010.0194983,0.00022762,2]
[313738489,1707647432072,-341.78195328,0.00022762,2]
[313738490,1707647432083,-299.99,0.00022762,2]
[313738503,1707647437862,-466.16410362,0.00022762,2]
[313738504,1707647437921,-1297.35051253,0.00022762,2]
[313738505,1707647438034,-316.07166888,0.00022762,2]
[313738506,1707647438218,-4742.84156189,0.00022762,2]
[313738507,1707647438230,-481.8,0.00022762,2]
[313738508,1707647438246,-1085.41820824,0.00022762,2]
[313738509,1707647438259,-681.41176422,0.00022762,2]
[313738510,1707647438271,-2614.91571,0.00022762,2]
[313738512,1707647438283,-638.24848553,0.00022762,2]
[313738514,1707647438294,-40088.38564482,0.00022762,2]
[313738515,1707647438305,-69898.58116232,0.00022762,2]
[313738547,1707647441316,-479.1893,0.00022762,2]
[313738548,1707647441329,-3842.0,0.00022762,2]
[313738557,1707647442890,-716.73474186,0.00022762,2]
[313738558,1707647442950,-1100.76216582,0.00022762,2]
[313738559,1707647443085,-51898.33351869,0.00022762,2]
[313738560,1707647443096,-499.99,0.00022762,2]
[313738561,1707647443106,-2793.0,0.0002277,2]
[313738562,1707647443117,-1582.25866063,0.000228,2]
[313738563,1707647443128,-800.0,0.00022816,2]
[313738564,1707647443137,-541.202,0.0002286,2]
[313738565,1707647443147,-321.0,0.0002286,2]
[313738566,1707647443158,-616.546,0.0002286,2]
[313738567,1707647443168,-150.0,0.0002286,2]
[313738568,1707647443177,-158.977,0.0002286,2]
[313738569,1707647443187,-453.0,0.0002286,2]
[313738570,1707647443197,-8154.0,0.0002286,2]
[313738571,1707647443207,-2287.0,0.0002286,2]
[313738572,1707647443217,-1165.702,0.0002286,2]
[313738573,1707647443226,-3424.937,0.0002286,2]
[313738574,1707647443236,-879.088,0.0002286,2]
[313738575,1707647443246,-2831.0,0.0002286,2]
[313738576,1707647443256,-841.0,0.0002286,2]
[313738577,1707647443265,-1232.0,0.0002286,2]
[313738578,1707647443275,-1848.4878,0.00022894,2]
[313738579,1707647443285,-320.5955,0.000229,2]
[313738580,1707647443295,-8255.81699866,0.000229,2]
[313738581,1707647443305,-5000.0,0.000229,2]
[313738582,1707647443315,-525.03,0.000229,2]
[313738583,1707647443325,-3859.589178,0.00022994,2]
[313738584,1707647443334,-1636.223937,0.00022994,2]
[313738585,1707647443344,-1439.4185139,0.00022994,2]
[313738586,1707647443354,-63823.8643443,0.00022994,2]
[313738587,1707647443363,-22889.39053157,0.00022998,2]
[313738588,1707647443373,-155.0,0.00022998,2]
[313738589,1707647443383,-353.91577987,0.00022999,2]
[313738590,1707647443392,-730.34092815,0.00022999,2]
[313738591,1707647443402,-294.15590585,0.00022999,2]
[313738592,1707647443412,-3313.68237718,0.00022999,2]
[313738593,1707647443422,-325070.88459485,0.00023,2]
[313738594,1707647443432,-11360.48419827,0.00023,2]
[313738601,1707647445978,-1003.0,0.00022897,2]
[313738602,1707647445987,-237.0,0.00022897,2]
[313738603,1707647445996,-80.49144556,0.00023,2]
[313738604,1707647446009,-360.45183548,0.00023,2]
[313738605,1707647446027,-24092.82910677,0.00023,2]
[313738606,1707647446047,-2756.8000224,0.00023,2]
[313738607,1707647446074,-10651.59767601,0.00023,2]
[313738609,1707647446290,-197.74431418,0.00022896,2]
[313738610,1707647446300,-1338.78063141,0.00023,2]
[313738621,1707647679307,1000.0,0.00021975,2]
[313738623,1707647707324,259.84,0.00021975,2]
[313738624,1707647722892,347.83,0.00021945,2]
[313738625,1707647778671,377.18,0.00020032,2]
[313738627,1707648004303,204.0,0.00021841,2]
[313738628,1707648097146,150.0,0.00021924,2]
[313738629,1707648128239,200.0,0.00021948,2]
[313738630,1707648216807,289.85,0.0002194,2]
[313738637,1707648430935,358.32,0.00020026,2]
[313738639,1707648576442,90641.0,0.000219,2]
[313738640,1707648581157,3021.0,0.000219,2]
[313738641,1707648605211,840.0,0.0002196,2]
[313738660,1707648632284,-224.0,0.00021994,2]
[313738661,1707648632296,-158.64936973,0.00022005,2]
[313738662,1707648632308,-157.4,0.00022105,2]
[313738663,1707648632318,-421.91163027,0.0002226,2]
[313738664,1707648632330,-78.08836973,0.0002226,2]
[313738665,1707648632340,-298.00862659,0.0002229,2]
[313738666,1707648632362,-60.31137341,0.0002229,2]
[313738667,1707648632372,-157.4,0.00022489,2]
[313738668,1707648632382,-263.84862659,0.0002254,2]
[313738669,1707648632394,-830.5591641,0.0002254,2]
[313738671,1707648632404,-1108.23862749,0.0002254,2]
[313738673,1707648632414,-1600.8,0.00022562,2]
[313738675,1707648632423,-165.54,0.00022644,2]
[313738677,1707648632434,-499.99,0.00022644,2]
[313738679,1707648632444,-606.79620841,0.00022662,2]
[313738709,1707648638109,-298.34239159,0.00022662,2]
[313738710,1707648638118,-18.10168406,0.000227,2]
[313738711,1707648638130,-981.89831594,0.000227,2]
[313738712,1707648638139,-800.0,0.00022816,2]
[313738713,1707648638149,-157.4,0.00022873,2]
[313738714,1707648638158,-716.91761274,0.000229,3]
[313738715,1707648638167,-2338.16307132,0.000229,2]
[313738716,1707648638179,-5229.66917747,0.000229,2]
[313738717,1707648638188,-2024.43378933,0.000229,2]
[313738718,1707648638224,-2975.56621067,0.000229,2]
[313738719,1707648638233,-1376.61,0.000229,2]
[313738720,1707648638242,-158.64936973,0.000229,2]
[313738721,1707648638252,-1292.28610064,0.000229,2]
[313738722,1707648638261,-10264.7,0.000229,2]
[313738723,1707648638272,-1952.24772098,0.000229,2]
[313738724,1707648638282,-197.71087703,0.000229,2]
[313738725,1707648638291,-612.30960758,0.000229,2]
[313738726,1707648638303,-841.0,0.00022921,2]
[313738727,1707648638312,-2831.0,0.00022921,2]
[313738728,1707648638321,-1069.645,0.00022921,2]
[313738729,1707648638330,-150.0,0.00022921,2]
[313738730,1707648638339,-321.0,0.00022921,2]
[313738731,1707648638348,-453.0,0.00022921,2]
[313738732,1707648638358,-1707.438,0.00022921,2]
[313738733,1707648638367,-8154.0,0.00022921,2]
[313738734,1707648638377,-171.00997525,0.0002299,2]
[313738735,1707648638387,-171.00997525,0.0002299,2]
[313738736,1707648638397,-20142.35039148,0.00022993,2]
[313738737,1707648638409,-1091.98198082,0.00022993,2]
[313738738,1707648638434,-403.93718871,0.00022993,2]
[313738739,1707648638446,-1624.19106183,0.00022993,2]
[313738740,1707648638488,-731.0,0.00022993,2]
[313738747,1707648640684,-1087.14696065,0.00022533,2]
[313738748,1707648640694,-752.14035967,0.00022993,2]
[313738749,1707648640706,-1572.90815554,0.00022993,2]
[313738750,1707648640719,-327.45822041,0.00022993,2]
[313738751,1707648640731,-1531.14617822,0.00022993,2]
[313738752,1707648640743,-7463.19073058,0.00022993,2]
[313738753,1707648640754,-1245.70852761,0.00022993,2]
[313738755,1707648641840,-91291.36895625,0.00022993,2]
[313738756,1707648641853,-190945.10778994,0.00022993,2]
[313738757,1707648641862,-14996.5914243,0.00022994,2]
[313738758,1707648641871,-1031.2574067,0.00022994,2]
[313738759,1707648641880,-3993.2132871,0.00022994,2]
[313738760,1707648641890,-2329.76851036,0.00022996,2]
[313738761,1707648641899,-155.0,0.00022996,2]
[313738762,1707648641909,-500.0,0.00022996,2]
[313738763,1707648641918,-156.47636841,0.00022996,2]
[313738764,1707648641928,-1066.30932914,0.00022996,2]
[313738765,1707648641938,-3213.23571618,0.00022996,2]
[313738766,1707648641947,-1145.23429919,0.00022997,2]
[313738767,1707648641957,-873.52449999,0.00022997,2]
[313738768,1707648641966,-161.27842766,0.00022998,2]
[313738769,1707648641977,-293.43334053,0.00022998,2]
[313738770,1707648641986,-157.18120035,0.00022998,2]
[313738771,1707648641994,-2142.13076352,0.00022998,2]
[313738772,1707648642004,-43199.71760909,0.00022998,2]
[313738773,1707648642013,-1579.86388507,0.00022998,2]
[313738774,1707648642022,-386.98501335,0.00022998,2]
[313738775,1707648642032,-512.29615867,0.00022998,2]
[313738776,1707648642042,-201.78710868,0.00022999,2]
[313738777,1707648642051,-458.61442053,0.00022999,2]
[313738778,1707648642060,-1844.68218607,0.00022999,4]
[313738779,1707648642069,-278.73949976,0.00022999,2]
[313738780,1707648642078,-1182.81798027,0.00022999,2]
[313738781,1707648642095,-594.15259222,0.00022999,2]
[313738782,1707648642104,-155.93044458,0.00022999,2]
[313738783,1707648642113,-1048.98717377,0.00022999,2]
[313738784,1707648642122,-1234.572843,0.00022999,2]
[313738785,1707648642131,-3313.68237718,0.00022999,2]
[313738786,1707648642140,-8002.12224765,0.00022999,2]
[313738787,1707648642150,-446.10138206,0.00022999,2]
[313738788,1707648642159,-175.27941938,0.00022999,2]
[313738789,1707648642168,-500.0,0.00022999,2]
[313738790,1707648642177,-471.31687913,0.00022999,2]
[313738791,1707648642187,-150.59366892,0.00022999,2]
[313738792,1707648642196,-350.0,0.00022999,2]
[313738793,1707648642205,-396.48873268,0.00022999,2]
[313738794,1707648642214,-68.07616842,0.00023,2]
[313738795,1707648642227,-420.0,0.00023,2]
[313738796,1707648642252,-430.72640198,0.00023,2]
[313738797,1707648642264,-1007.43044093,0.00023,2]
[313738798,1707648642280,-1895.71918595,0.00023,2]
[313738799,1707648642297,-1159.81592435,0.00023,2]
[313738800,1707648642308,-354.33584849,0.00023,2]
[313738801,1707648642333,-227538.55346969,0.00023,2]
[313738802,1707648642344,-988.71430753,0.00023,2]
[313738803,1707648642361,-932.635,0.00023,2]
[313738835,1707648643123,-2178.02736905,0.00023,2]
[313738837,1707648643137,-2303.24946996,0.00023,2]
[313738840,1707648643234,-1538.60931387,0.00023,2]
[313738841,1707648643297,-4693.97463831,0.00023,2]
[313738842,1707648643307,-1280.30084136,0.00023,2]
[313738843,1707648643319,-4234.76331341,0.00023,2]
[313738844,1707648643331,-1202.775,0.00023,2]
[313738845,1707648643494,-97726.86185897,0.00023,2]
[313738846,1707648643504,-218.38827187,0.00023,3]
[313738847,1707648643513,-2053.80540762,0.00023,3]
[313738848,1707648643522,-1564224.11541546,0.00023,2]
[313738851,1707648643534,-546508.75058573,0.00023,2]
[313738853,1707648643545,-29151.3656423,0.00023,2]
[313738854,1707648643557,-44866.89862724,0.00023,2]
[313738855,1707648643566,-1585.38761386,0.00023,2]
[313738856,1707648643577,-313.50698011,0.00023,2]
[313738899,1707648646188,-275.40697473,0.00023,2]
[313738906,1707648646251,-3313.68237718,0.00022999,2]
[313738908,1707648646261,-446175.62200479,0.00023,2]
[313738914,1707648646310,-24313.74817788,0.00023,2]
[313738921,1707648646369,-3215.42975538,0.00023,2]
[313738922,1707648646382,-407.13101451,0.00023,2]
[313738951,1707648945705,353.4,0.00019949,2]
[313738952,1707649052627,328.0,0.00021852,2]
[313738953,1707649053400,166.29,0.00021857,2]
[313738954,1707649062760,3382.6,0.0002,2]
[313738955,1707649266673,157.76,0.00021868,2]
[313738956,1707649445772,204.0,0.00021021,2]
[313738957,1707649474814,2000.0,0.0002199,2]
[313738958,1707649508785,737.6,0.00021656,2]
[313738959,1707649509335,335.73,0.00019738,2]
[313738960,1707649572117,498.5,0.00021637,2]
[313738961,1707649575575,402.68003383,0.00021989,2]
[313738963,1707649682598,973.07605628,0.00021989,2]
[313738979,1707649781743,167.97,0.00021632,2]
[313738984,1707649794646,157.76,0.00021807,2]
[313738995,1707649832292,-402.68003383,0.00021991,2]
[313738996,1707649832303,-293.29706829,0.00021992,2]
[313738997,1707649832313,-335.73,0.00022002,2]
[313738998,1707649832324,-500.0,0.0002226,2]
[313738999,1707649832334,-159.72869695,0.0002237,2]
[313739000,1707649832345,-157.76,0.00022376,2]
[313739001,1707649832355,-159.72869695,0.00022405,2]
[313739002,1707649832366,-167.03,0.00022415,2]
[313739003,1707649832375,-159.72869695,0.00022441,2]
[313739004,1707649832384,-57.35279963,0.00022469,2]
[313739005,1707649832433,-92.64720037,0.00022469,2]
[313739006,1707649832443,-150.0,0.00022469,2]
[313739007,1707649832453,-76.5942909,0.0002247,2]
[313739008,1707649832466,-357.46371413,0.0002247,2]
[313739009,1707649832588,-7015.76199497,0.0002247,2]
[313739010,1707649832598,-999.99,0.0002247,2]
[313739011,1707649832608,-159.72869695,0.00022476,2]
[313739012,1707649832622,-3000.0,0.000225,2]
[313739013,1707649832631,-499.99,0.000225,2]
[313739015,1707649832641,-159.72869695,0.00022511,2]
[313739017,1707649832652,-1022.96298897,0.0002254,2]
[313739019,1707649832662,-3242.43,0.0002254,2]
[313739021,1707649832673,-159.72869695,0.00022547,2]
[313739023,1707649832683,-159.72869695,0.00022582,2]
[313739025,1707649832694,-195.4306336,0.000226,2]
[313739026,1707649832704,-159.72869695,0.00022617,2]
[313739027,1707649832714,-159.72869695,0.00022653,2]
[313739028,1707649832725,-159.72869695,0.00022688,2]
[313739029,1707649832736,-179.81409361,0.00022698,2]
[313739030,1707649833031,-1000.0,0.00022699,2]
[313739031,1707649833040,-1000.0,0.000227,2]
[313739032,1707649833050,-515.28,0.000227,2]
[313739033,1707649833059,-245999.14983608,0.000227,2]
[313739034,1707649833072,-1866.006,0.000227,2]
[313739035,1707649833084,-373.90204875,0.000227,2]
[313739036,1707649833095,-1566.98708128,0.000227,2]
[313739037,1707649833132,-150412.29706624,0.000227,2]
[313739038,1707649833143,-957.042,0.000227,2]
[313739039,1707649833152,-159.72869695,0.00022723,2]
[313739040,1707649833162,-3587.21,0.00022737,2]
[313739041,1707649833172,-500.0,0.00022737,2]
[313739042,1707649833181,-500.0,0.00022757,2]
[313739043,1707649833191,-159.72869695,0.00022759,2]
[313739044,1707649833200,-234.88931985,0.00022761,2]
[313739045,1707649833209,-150.0,0.0002277,2]
[313739046,1707649833218,-500.0,0.00022777,2]
[313739047,1707649833227,-159.72869695,0.00022794,2]
[313739048,1707649833236,-500.0,0.00022797,2]
[313739049,1707649833246,-155.93305506,0.000228,2]
[313739050,1707649833255,-500.0,0.00022802,2]
[313739051,1707649833264,-500.0,0.00022806,2]
[313739052,1707649833273,-500.0,0.00022811,2]
[313739053,1707649833282,-500.0,0.00022815,2]
[313739054,1707649833291,-800.0,0.00022816,2]
[313739055,1707649833301,-8154.0,0.0002282,2]
[313739056,1707649833310,-159.72869695,0.00022829,2]
[313739057,1707649833319,-159.72869695,0.00022865,2]
[313739058,1707649833329,-155.49024871,0.00022883,2]
[313739059,1707649833338,-163.98550413,0.0002289,2]
[313739060,1707649833347,-9693.2122,0.00022893,2]
[313739061,1707649833356,-10588.4643,0.00022893,2]
[313739062,1707649833366,-331.6728,0.00022894,2]
[313739063,1707649833375,-4959.07760613,0.00022897,2]
[313739064,1707649833383,-173.58104472,0.00022897,2]
[313739065,1707649833393,-544.05912263,0.00022897,2]
[313739066,1707649833402,-7248.0165,0.00022899,2]
[313739067,1707649833411,-71844.8791,0.000229,2]
[313739068,1707649833419,-5800.19529632,0.000229,2]
[313739069,1707649833428,-6937.1795614,0.000229,2]
[313739070,1707649833437,-1012.60571667,0.000229,2]
[313739071,1707649833449,-3987.39428333,0.000229,2]
[313739072,1707649833459,-163.98550412,0.000229,2]
[313739073,1707649833467,-159.72869695,0.000229,2]
[313739074,1707649833477,-2831.0,0.00022921,2]
[313739075,1707649833487,-841.0,0.00022921,2]
[313739076,1707649833496,-321.0,0.00022921,2]
[313739077,1707649833505,-453.0,0.00022921,2]
[313739078,1707649833514,-157.76,0.00022944,2]